Cogmind - Beta 14 @@@ ROGUE MODE // 2025.03.06 @ 13:13:14 Player: mix Result: Destroyed by DAS Turret with DAS Cannon Performance ------------- Evolutions (1) 500 Regions Visited (5) 1000 Robots Destroyed (22) 110 Value Destroyed (396) 396 Prototype IDs (29) 580 Alien Tech Used (0) 0 Bonus (274) 274 TOTAL SCORE: 2860 Bonus ------- Follower Combat Kills 262 Aligned with FarCom 300 Friendly Fire -288 Cogmind --------- Core Integrity 0/400 Matter 70/300 Energy 310/310 System Corruption 0% Temperature Cool (0) Movement Core (650) Ox12 Location -9/Exiles Parts ------- > --- POWER (1) -------- Reinforced Fission Core > --- PROPULSION (2) --- (None) > --- UTILITY (4) ------ Cooling System Medium Storage Unit Skeleton Box > --- WEAPON (2) ------- Longsword +1 > --- INVENTORY (10) --- Flying Fortress v7 Large Storage Unit Improved EM Shotgun Improved Medium Laser Advanced Beam Cannon Plasma Flamer Peak State ------------ > --- POWER ------------ Reinforced Fission Core > --- PROPULSION ------- (None) > --- UTILITY ---------- Cooling System Medium Storage Unit Skeleton Box > --- WEAPON ----------- 8R-AWN's Boregun Longsword +1 > --- INVENTORY -------- Flying Fortress v7 Large Storage Unit Improved EM Shotgun Improved Medium Laser Advanced Beam Cannon Plasma Flamer [Rating: 37] Favorites ----------- Power Ion Engine Engine Ion Engine Power Core Reinforced Fission Core Propulsion Light Treads Treads Light Treads Utility Medium Storage Unit Device Bomb Drone Bay Storage Medium Storage Unit Protection Medium Armor Plating Weapon Improved Medium Laser Energy Gun Improved Medium Laser Energy Cannon Particle Cannon Ballistic Gun 8R-AWN's Boregun Slashing Weapon Longsword +1 Build | -11 -10 -10 -9 -9 -9 ------- Run | Yrd Mat Min Mat Min Exi Slots Evolved 2 | . . . 2 . . Power . | . . . . . . Propulsion . | . . . . . . Utility 2 | . . . 2 . . Weapon . | . . . . . . Parts Attached 39 | 6 1 6 14 . 12 Power 5 | 1 . 2 . . 2 Engine 3 | 1 . 2 . . . Core 2 | . . . . . 2 Reactor . | . . . . . . Propulsion 6 | 2 . 1 2 . 1 Treads 6 | 2 . 1 2 . 1 Leg . | . . . . . . Wheel . | . . . . . . Hover . | . . . . . . Flight . | . . . . . . Utility 15 | 1 1 2 5 . 6 Device 6 | . 1 2 . . 3 Storage 4 | 1 . . 3 . . Processor . | . . . . . . Hackware . | . . . . . . Protection 5 | . . . 2 . 3 Artifact . | . . . . . . Weapon 13 | 2 . 1 7 . 3 Energy Gun 8 | 2 . . 5 . 1 Energy Cannon 2 | . . . 2 . . Ballistic Gun 2 | . . 1 . . 1 Ballistic Cannon . | . . . . . . Launcher . | . . . . . . Special Weapon . | . . . . . . Impact Weapon . | . . . . . . Slashing Weapon 1 | . . . . . 1 Piercing Weapon . | . . . . . . Special Melee Weapon . | . . . . . . Unidentified Prototypes 6 | . . 1 3 . 2 Parts Lost 17 | . . 2 2 . 13 Power 3 | . . 1 . . 2 Propulsion 3 | . . . . . 3 Utility 6 | . . . . . 6 Weapon 5 | . . 1 2 . 2 Highest Loss Streak 10 | . . 1 1 . 10 To Critical Strikes 2 | . . . . . 2 Average Slot Usage (%) 78 | . 94 93 86 88 66 Engine 7 | . 14 13 11 11 2 Core 3 | . . . . . 8 Treads 15 | . 28 28 22 22 6 Device 12 | . 8 14 11 11 13 Storage 10 | . 14 9 10 11 11 Protection 4 | . . . 9 11 2 Energy Gun 10 | . 28 22 17 11 2 Energy Cannon 2 | . . . 1 11 2 Ballistic Gun 5 | . . 4 2 . 8 Slashing Weapon 4 | . . . . . 8 Peak Build Rating 37 | 6 7 19 27 27 37 Average Rating 24 | 4 6 10 25 26 31 On Entrance 14 | . 6 7 19 26 27 Naked Turns . | . . . . . . Heaviest Build 106 | 13 14 16 106 37 46 Greatest Support 40 | 40 40 40 40 40 40 Greatest Overweight (x) 14 | . . . 2 . 14 Average Overweight (x) 1 | . . . . . 4 Largest Inventory Capacity 25 | 8 8 8 25 10 10 Average Capacity 9 | 7 8 7 8 10 10 Most Carried 10 | 3 2 4 9 9 10 Average Carried 6 | . . 2 6 8 7 Final Capacity 10 | 8 8 5 10 10 10 Final Carried 9 | . 2 3 8 9 9 Class Distribution -------------------- 70% | Mutant 29% | Scavenger-Mutant Dominant Class ---------------- Mutant | -10/Materials Mutant | -10/Mines Mutant | -9/Materials Scavenger-Mutant | -9/Mines Mutant | -9/Exiles Resources | -11 -10 -10 -9 -9 -9 ----------- Run | Yrd Mat Min Mat Min Exi Matter Collected 492 | 260 10 60 143 . 19 Remotely . | . . . . . . Salvage Created 869 | 90 156 66 358 . 199 Parts 54 | 3 7 10 25 . 9 Haulers Intercepted 3 | . 1 . 2 . . Recyclers Shooed 1 | . . . 1 . . Parts Field Recycled . | . . . . . . Retrieved Matter . | . . . . . . Parts Self-Destructed . | . . . . . . Prevented . | . . . . . . Kills | -11 -10 -10 -9 -9 -9 ------- Run | Yrd Mat Min Mat Min Exi Combat Hostiles Destroyed 16 | . 2 5 8 . 1 Guns 15 | . 2 5 7 . 1 Cannons 1 | . . . 1 . . Classes Destroyed 7 | 1 3 1 1 . 1 Hauler 3 | . 1 . 2 . . Recycler 1 | 1 . . . . . Watcher 3 | . 1 . 2 . . Swarmer 10 | . . 5 5 . . Grunt 2 | . 2 . . . . Sentry 3 | . . . 3 . . Assembled 1 | . . . . . 1 Best Kill Streak 3 | 1 2 3 3 . 1 Combat Bots Only 3 | . 2 3 3 . 1 Max Kills in Single Turn 2 | 1 1 1 2 . 1 Gunslinging 1 | . . . 1 . . Exploded . | . . . . . . Melee . | . . . . . . Uniques/NPCs Destroyed . | . . . . . . Combat | -11 -10 -10 -9 -9 -9 -------- Run | Yrd Mat Min Mat Min Exi Hostile Shots Fired 204 | . 8 69 36 . 91 Missed 45 | . 1 15 11 . 18 Damage Taken 2747 | . 102 510 304 . 1831 Core 500 | . 10 87 14 . 389 Absorbed by Shields . | . . . . . . Core Remaining (%) 80 | 100 . 61 . . . Volleys Fired 105 | 3 15 26 28 . 33 Largest 2 | 2 2 2 2 . 1 Hottest 124 | 90 90 90 124 . 56 Shots Fired 174 | 6 29 51 55 . 33 Gun 167 | 6 29 51 48 . 33 Cannon 7 | . . . 7 . . Launcher . | . . . . . . Special . | . . . . . . Kinetic 32 | . . . 3 . 29 Thermal 142 | 6 29 51 52 . 4 Explosive . | . . . . . . Electromagnetic . | . . . . . . Robot Hit Streak 11 | 3 2 6 4 . 11 Robot Miss Streak 4 | 1 4 4 3 . 2 Penetration Max 1 | . . . . . 1 Secondary Targets 4 | . . 2 2 . . Max Gunslinging Chain 1 | . . 1 1 . . Shots Hit Robots 113 | 5 13 26 29 . 40 Core Hits 44 | 2 8 8 14 . 12 Critical Kills 4 | . . . . . 4 Critical Parts Destroyed 3 | . . . . . 3 Critical Strikes 16 | . . . 6 . 10 Burn 6 | . . . 6 . . Destroy 7 | . . . . . 7 Sever 3 | . . . . . 3 Melee Attacks 27 | . . . . . 27 Impact . | . . . . . . Slashing 27 | . . . . . 27 Piercing . | . . . . . . Sneak Attacks 1 | . . . . . 1 Combat Hostiles . | . . . . . . Follow-up Attacks . | . . . . . . Damage Inflicted 2713 | 57 152 336 529 . 1639 Guns 1339 | 57 152 336 488 . 306 Cannons 41 | . . . 41 . . Explosions . | . . . . . . Melee 1333 | . . . . . 1333 Ramming . | . . . . . . Kinetic 289 | . . . 18 . 271 Thermal 1091 | 57 152 336 511 . 35 Explosive . | . . . . . . Electromagnetic . | . . . . . . Impact . | . . . . . . Slashing 1333 | . . . . . 1333 Piercing . | . . . . . . Highest Corruption . | . . . . . . Average Corruption . | . . . . . . Corruption Purged . | . . . . . . Corruption Blocked . | . . . . . . Overload Shots . | . . . . . . Overflow Damage . | . . . . . . Projectiles . | . . . . . . Explosions . | . . . . . . Melee . | . . . . . . Knockbacks . | . . . . . . Impact . | . . . . . . Kinetic . | . . . . . . Secondary . | . . . . . . Self-Inflicted Damage . | . . . . . . Shots . | . . . . . . Rammed . | . . . . . . Targets Rammed . | . . . . . . Kicked . | . . . . . . Crushed . | . . . . . . Highest Temperature 349 | 90 268 48 349 . 1 Average Temperature 83 | 48 114 21 82 . 1 Received Heat Transfer 275 | . 78 96 81 . 20 Siege Activations . | . . . . . . Robots Corrupted . | . . . . . . Combat Hostiles . | . . . . . . Parts Fried . | . . . . . . Impact Corruptions . | . . . . . . Robots Melted . | . . . . . . Combat Hostiles . | . . . . . . Parts Melted 9 | . . 1 8 . . Heat Transferred 3102 | 161 397 916 1554 . 74 Parts Sabotaged . | . . . . . . Parts Stolen . | . . . . . . Parts Stripped . | . . . . . . Power Chain Reactions . | . . . . . . Alert | -11 -10 -10 -9 -9 -9 ------- Run | Yrd Mat Min Mat Min Exi Peak Influence 284 | 5 82 284 232 63 . Initial 63 | . 3 31 32 63 . Average 90 | 2 51 147 89 44 . Maximum Alert Level 1 | . . 1 1 . . Low Security (%) 87 | 100 100 74 87 100 . Level 1 12 | . . 25 12 . . Level 2 . | . . . . . . Level 3 . | . . . . . . Level 4 . | . . . . . . Level 5 . | . . . . . . High Security . | . . . . . . Max Security . | . . . . . . Squads Dispatched 2 | . . 1 1 . . Investigation . | . . . . . . Extermination . | . . . . . . Reinforcement 1 | . . . 1 . . Assault 1 | . . 1 . . . Garrison . | . . . . . . Intercept . | . . . . . . Searches Triggered . | . . . . . . Construction Impeded . | . . . . . . Haulers Reinforced . | . . . . . . Active Scanning Responses . | . . . . . . Cargo Convoy Interrupts . | . . . . . . Stealth | -11 -10 -10 -9 -9 -9 --------- Run | Yrd Mat Min Mat Min Exi Distress Signals 2 | . . . 2 . . Communications Jammed . | . . . . . . Distress Signals . | . . . . . . Times Spotted 45 | . 3 12 22 . 8 Peak Tracking Total 9 | . 2 4 5 . 9 Tactical Retreats 3 | . . 1 . . 2 Traps | -11 -10 -10 -9 -9 -9 ------- Run | Yrd Mat Min Mat Min Exi Traps Triggered . | . . . . . . Indirectly . | . . . . . . Trap Hack Attempts . | . . . . . . Triggered . | . . . . . . Disarmed . | . . . . . . Reprogrammed . | . . . . . . Reused . | . . . . . . Traps Extracted . | . . . . . . Installed . | . . . . . . Triggered . | . . . . . . Machines | -11 -10 -10 -9 -9 -9 ---------- Run | Yrd Mat Min Mat Min Exi Machines Disabled 7 | . . . 2 . 5 Max in Single Turn 1 | . . . 1 . 1 Machines Repaired . | . . . . . . Machines Dismantled . | . . . . . . Machines Sabotaged . | . . . . . . Overloaded Fab Kills . | . . . . . . Hacking | -11 -10 -10 -9 -9 -9 --------- Run | Yrd Mat Min Mat Min Exi Machines Accessed 5 | . 1 1 1 . 2 Terminals . | . . . . . . Fabricators . | . . . . . . Repair Stations . | . . . . . . Recycling Units 2 | . 1 . 1 . . Scanalyzers . | . . . . . . Garrison Access . | . . . . . . Total Hacks 7 | . 3 1 1 . 2 Successful 5 | . 1 1 1 . 2 Failed 2 | . 2 . . . . Catastrophic 1 | . 1 . . . . Database Lockouts . | . . . . . . Manual 1 | . . . . . 1 Terminals . | . . . . . . Fabricators . | . . . . . . Repair Stations . | . . . . . . Recycling Units 4 | . 3 . 1 . . Scanalyzers . | . . . . . . Garrison Access . | . . . . . . Terminal Hacks 3 | . . 1 . . 2 Record 1 | . . . . . 1 Open Door 1 | . . 1 . . . Derelict Proto ID Bank 1 | . . . . . 1 Fabricator Hacks . | . . . . . . Repair Station Hacks . | . . . . . . Recycling Unit Hacks 2 | . 1 . 1 . . Retrieve Components 2 | . 1 . 1 . . Scanalyzer . | . . . . . . Garrison Access Hacks . | . . . . . . Unauthorized Hacks . | . . . . . . Terminals . | . . . . . . Fabricators . | . . . . . . Repair Stations . | . . . . . . Recycling Units . | . . . . . . Scanalyzers . | . . . . . . Garrison Access . | . . . . . . Data Cores Recovered . | . . . . . . Used . | . . . . . . Hacking Detections . | . . . . . . Full Trace Events . | . . . . . . Feedback Events . | . . . . . . Feedback Blocked . | . . . . . . Robot Schematics Acquired . | . . . . . . Robots Built . | . . . . . . Authchips . | . . . . . . Time . | . . . . . . Total Robot Build Rating . | . . . . . . Part Schematics Acquired . | . . . . . . Parts Built . | . . . . . . Authchips . | . . . . . . Time . | . . . . . . Total Part Build Rating . | . . . . . . Parts Repaired . | . . . . . . Time . | . . . . . . Parts Recycled . | . . . . . . Recycled Matter . | . . . . . . Retrieved Matter . | . . . . . . Retrieved Components 10 | . . . 10 . . Parts Scanalyzed . | . . . . . . Part Schematics Acquired . | . . . . . . Parts Damaged . | . . . . . . Bothacking | -11 -10 -10 -9 -9 -9 ------------ Run | Yrd Mat Min Mat Min Exi Used RIF Installer . | . . . . . . Robots Hacked . | . . . . . . Non-combat . | . . . . . . Combat . | . . . . . . Robot Hacks Applied . | . . . . . . Relay Couplers Released . | . . . . . . Fabnet Peak Effective % . | . . . . . . Robots Rewired . | . . . . . . Allies Hacked . | . . . . . . Hacks Repelled . | . . . . . . Allies | -11 -10 -10 -9 -9 -9 -------- Run | Yrd Mat Min Mat Min Exi Total Allies 4 | . . 4 . . . Largest Group 4 | . . 4 4 . . Highest-Rated Group 71 | . . 71 71 . . Highest-Rated Ally 31 | . . 31 31 . . Total Orders 2 | . . . 1 . 1 RETURN 2 | . . . 1 . 1 Ally Attacks 83 | . . 11 67 1 4 Total Damage 765 | . . 126 639 . . Kills 14 | . . 5 9 . . Allies Corrupted . | . . . . . . Allies Melted . | . . . . . . Intel | -11 -10 -10 -9 -9 -9 ------- Run | Yrd Mat Min Mat Min Exi Robot Analysis Total . | . . . . . . Derelict Logs Recovered 2 | . . 1 . 1 . Drone Launches 18 | . . . 12 2 4 Drone Recoveries 2 | . . . 1 . 1 Exploration | -11 -10 -10 -9 -9 -9 ------------- Run | Yrd Mat Min Mat Min Exi Turns Passed 3709 | 78 181 482 1014 257 1697 Spaces Moved 1476 | 42 84 219 546 161 424 Core 143 | 8 . . . . 135 Treads 1333 | 34 84 219 546 161 289 Legs . | . . . . . . Wheels . | . . . . . . Hover . | . . . . . . Flight . | . . . . . . Fastest Speed 50 | 50 160 160 160 160 160 Average Speed 219 | 139 160 160 160 160 367 Slowest Speed 750 | 160 160 160 320 160 750 Overloaded Moves . | . . . . . . Propulsion Burnouts . | . . . . . . Robots Hopped . | . . . . . . Cave-ins Triggered . | . . . . . . Exploration Rate (%) 34 | 4 26 45 51 33 50 Regions Visited 5 Branch Regions 3 Pre-discovered Areas . | . . . . . . Known Exits Taken . | . . . . . . Unknown Exits Taken 5 | 1 1 1 1 1 . Scrap Searched 2 | . . 1 . 1 . Spaces Dug 8 | . . . . . 8 Terrain Destroyed 17 | . . . . . 17 Melee . | . . . . . . Projectile 17 | . . . . . 17 AOE . | . . . . . . Terrain Rammed . | . . . . . . Walls Destroyed . | . . . . . . Machines Disabled . | . . . . . . Actions | -11 -10 -10 -9 -9 -9 --------- Run | Yrd Mat Min Mat Min Exi Total 1752 | 56 102 300 630 161 503 Wait 62 | . . 42 20 . . Move 1471 | 41 83 218 545 160 424 Hop . | . . . . . . Pick Up 35 | 6 3 4 14 1 7 Fast Attach 1 | . . . 1 . . Attach 24 | 6 1 3 4 . 10 Detach 2 | . . 2 . . . Swap 14 | . . 3 9 . 2 Drop 11 | . . 2 9 . . Fire 105 | 3 15 26 28 . 33 Melee 27 | . . . . . 27 Ram . | . . . . . . Kick . | . . . . . . Crush . | . . . . . . Escape Stasis . | . . . . . . Rewire . | . . . . . . Trap . | . . . . . . Miscellaneous . | . . . . . . Route ------- -11/Scrapyard -10/Materials (discovered 2 exits: *Mat / *Min) -10/Mines -9/Materials (discovered 2 exits: [*Mat] / [*Min]) -9/Mines -9/Exiles History --------- Turn | Location | Event 3 | -11/Scrapyard | Discovered new exit (range 15) 79 | -11/Scrapyard | Entered Materials 160 | -10/Materials | Discovered new exit (range 16) 232 | -10/Materials | Discovered new exit (range 15) 260 | -10/Materials | Entered Mines 261 | -10/Mines | Met a Derelict testing a Signal Generator 302 | -10/Mines | Build established: Mutant 378 | -10/Mines | Learned Materials garrison access intel 590 | -10/Mines | Found the Drone Emporium 597 | -10/Mines | Found Prototype Device 609 | -10/Mines | Identified Bomb Drone Bay 680 | -10/Mines | Assisted by bots powering up and referring to "LRC-V3" 719 | -10/Mines | Discovered new exit (range 3) 742 | -10/Mines | Entered Materials 742 | -9/Materials | Accompanied by 4 allies 742 | -9/Materials | Evolved 2 slots: Utility x2 811 | -9/Materials | Lost 3 allies 877 | -9/Materials | Lost 6 allies 1221 | -9/Materials | Discovered new exit (range 13) 1636 | -9/Materials | Build established: Scavenger-Mutant 1732 | -9/Materials | Discovered new exit (range 14) 1756 | -9/Materials | Entered Mines 1812 | -9/Mines | Learned Materials stockpile data 1894 | -9/Mines | A weapon hastily lodged in a ceiling crevice suddenly fell to the ground 2007 | -9/Mines | Deemed a non-threat by the Exiles lab entrance 2007 | -9/Mines | Discovered new exit (range 5) 2013 | -9/Mines | Entered Exiles 2013 | -9/Exiles | Accompanied by 1 ally 2052 | -9/Exiles | Met 8R-AWN 2079 | -9/Exiles | Met EX-HEX 2127 | -9/Exiles | Met EX-BIN 2149 | -9/Exiles | Aligned with FarCom system 2151 | -9/Exiles | Given EX-Vault access code 2191 | -9/Exiles | Opened EX-Vault 2199 | -9/Exiles | Found Longsword +1 2235 | -9/Exiles | Warned to stay clear of 0b10 Research branches 2329 | -9/Exiles | Attacked by the Exiles 2377 | -9/Exiles | Lost 4 allies 2402 | -9/Exiles | Found Prototype Ballistic Gun 2409 | -9/Exiles | Found Prototype Device 2410 | -9/Exiles | Identified AS-neutralizer No. 17b 2411 | -9/Exiles | Identified 8R-AWN's Boregun 2412 | -9/Exiles | Lost 10 parts (2p2n5u1w) 2583 | -9/Exiles | Core integrity fell below 50% 2660 | -9/Exiles | Build established: Mutant 3059 | -9/Exiles | Found Flying Fortress v7 3095 | -9/Exiles | Found Skeleton Box 3709 | -9/Exiles | Core integrity fell below 20% 3710 | -9/Exiles | Destroyed by DAS Turret with DAS Cannon Last Messages --------------- A-02 Transporter suffers critical hit (Destroy). Destroyed Lgt. Treads. HV Slug penetrates A-02 Transporter. A-02 Transporter suffers critical hit (Destroy). A-02 Transporter destroyed. HV Slug penetrates A-02 Transporter. HV Slug penetrates Wall. HV Slug penetrates A-02 Transporter. HV Slug penetrates Wall. HV Slug penetrates A-02 Transporter. HV Slug penetrates Wall. HV Slug penetrates A-02 Transporter. A-02 Transporter suffers critical hit (Destroy). Destroyed Ion Engine. HV Slug penetrates Wall. HV Slug penetrates A-02 Transporter. A-02 Transporter suffers critical hit (Destroy). A-02 Transporter destroyed. HV Slug penetrates Wall. 8R-AWN's Boregun destroyed. Map ----- +----------------------------------------------------+ | ????????????????????????# """#????????? | | ????????????????????????#" "X" """""???????? | | ????????????????????????#" """ #????????? | | ????????????????????????#" """""""""#????????? | | ???????????????????????##" ###########????????? | | ??????????????????????##"" #??????????????????? | | ?????????????????######"" #???????????????? ?? | | ??????????????"?##""""""" ##??????????????? ?? | | ?????????? ???"""""" " "" ##???########### #? | | ?????????? "" """ " #####"""""""""""#? | | ????????? " " " """ """ ##? | | ????????? "" " ## | | ???????? " ""? | | ???????? "%"#? | | ???????? % "## | | ???????? " | | ???????? " """ "" | | ????????? ######""" | | ????????? ""#?????#####""" | | ?????????? """#??????????##""" | | ?????????? """#????????????#"""" | | ?????????? ????????????####"" | | ??????????? #?##########;#"""" | | ?????????? #;*%!!!;% | | ?????????? !%!%=" "" | | ?????????? = ! @% | | ?????????? %% | | ?????????? " | | ?????????? % "" """ | | ?????????? ""## ##""" " " ""#" | | ??????????? ""##?# ######""" """##""""""" | | ??????????? """"#???# #????###""""########## | | ???????????? """???## ####???######????????? | | ???????????? ???????# "!#?????????????????? | | ????????????????????????#" !#?????????????????? | | ????????????????????????#" "#?????????????????? | | ????????????????????????#!!""!"#?????????????????? | | ????????????????????????########?????????????????? | | ?????????????????????????????????????????????????? | | ?????????????????????????????????????????????????? | | ?????????????????????????????????????????????????? | | ?????????????????????????????????????????????????? | | ?????????????????????????????????????????????????? | | ?????????????????????????????????????????????????? | | ?????????????????????????????????????????????????? | | ?????????????????????????????????????????????????? | | ?????????????????????????????????????????????????? | | ?????????????????????????????????????????????????? | | ?????????????????????????????????????????????????? | | ?????????????????????????????????????????????????? | +----------------------------------------------------+ Best States ------------- Heat Dissipation 50 Energy Generation 19 Energy Capacity 310 Matter Stores 300 Matter Capacity 300 Sight Range 16 Terrain Scan Density 10 Armor Coverage 450 Evasion (%) 40 Recoil Reduction 2 Item Schematics ----------------- None Robot Schematics ------------------ None Fabricated ------------ Nothing Alien Tech Used ----------------- None Achievements -------------- None Challenges ------------ None Game ------ Seed SigixCloakingDatajack Manual? 0 Play Time 00:22:50 Cumulative 56.8 hours Start 2025.03.06 @ 12:53:11 End 2025.03.06 @ 13:13:14 Sessions 1 Manual Loads 0 Difficulty Rogue Special Mode None Game No. 80 Rogue 66 Adventurer 14 Explorer 0 Win Type - Total 0 Types 0/0/0/0/0/0/0/0/0 Lore% 20 Gallery% 41 Achievement% 37 Wizard Run 0 Options --------- Layout 1 ASCII 0 Keyboard 0 Movement Mouse Keybinds 0 Fullscreen 1 Font 24/Smallcaps Map View 50x35 Zoom Use 0% Tactical HUD 0 Map Filters NONE Filters NONE Steam 1 RUN: 6a4116a8-f506-4528-ae16-ff21ea44656b